Cogmind - Beta 13 @@@ ROGUE MODE // 2024.04.24 @ 17:16:20 Player: H3-RMN Result: Destroyed by G-47 Trooper with Particle Gun Performance ------------- Evolutions (3) 1500 Regions Visited (9) 1800 Robots Destroyed (203) 1015 Value Destroyed (6821) 6821 Prototype IDs (26) 520 Alien Tech Used (0) 0 Bonus (4142) 4142 TOTAL SCORE: 15798 Bonus ------- High Alert Combat Kills 1543 Follower Combat Kills 103 Entered Garrisons 600 Used RIF Installer 2000 Friendly Fire -104 Cogmind --------- Core Integrity 0/700 Matter 235/300 Energy 189/370 System Corruption 8% Temperature Cool (4) Movement Treading (320) Ox2 Location -7/Garrison Parts ------- > --- POWER (1+2) ------ Light Nuclear Core (+) Cooled Deuterium Engine > --- PROPULSION (4) --- Medium Treads Medium Treads Armored Huge Wheel > --- UTILITY (6) ------ Improved Heat Sink Improved Heat Sink Huge Storage Unit Core Analyzer Improved Medium Armor Plating Power Bank > --- WEAPON (2) ------- Proton Cannon Proton Cannon > --- INVENTORY (25) --- Huge Storage Unit Large Battery (200) Large Battery (200) Launcher Guidance Computer Core Analyzer Matter Filter Kinecellerator Transmission Jammer Improved Utility Shielding Advanced System Shield Authchip [Weapon] Authchip [Weapon] Long-range Tractor Beam Proton Cannon Proton Cannon KE Penetrator Mini Assault Cannon Mini Assault Cannon Heavy Shock Bomb Launcher Heavy Missile Launcher Heavy Missile Launcher Rocket Array Plasma Cutter Multitool Power Maul Peak State ------------ > --- POWER ------------ Light Nuclear Core Cooled Deuterium Engine > --- PROPULSION ------- Medium Treads Medium Treads Armored Huge Wheel > --- UTILITY ---------- Huge Storage Unit Core Analyzer Transmission Jammer Hardened Heavy Armor Plating Power Bank > --- WEAPON ----------- Proton Cannon Proton Cannon > --- INVENTORY -------- Medium Treads Medium Treads Armored Huge Wheel Huge Storage Unit Launcher Guidance Computer Core Analyzer Matter Filter Kinecellerator Improved Utility Shielding Improved Medium Armor Plating Advanced System Shield Authchip [Weapon] Authchip [Weapon] Long-range Tractor Beam KE Penetrator Mini Assault Cannon Mini Assault Cannon Heavy Shock Bomb Launcher Heavy Missile Launcher Heavy Missile Launcher Rocket Array Plasma Cutter Multitool Power Maul [Rating: 70] Favorites ----------- Power Neutrino Core Engine Deuterium Engine Power Core Neutrino Core Propulsion Light Treads Treads Light Treads Leg Aluminum Leg Wheel Wheel Flight Unit Improved VTOL Module Utility Hardened Heavy Armor Plating Device Shield Generator Storage High-capacity Storage Unit Processor Core Analyzer Hackware Relay Coupler [NC] Protection Hardened Heavy Armor Plating Weapon Enhanced Autogun Energy Gun Medium Laser Energy Cannon Subdweller Beam Cannon Ballistic Gun Enhanced Autogun Ballistic Cannon Mini Assault Cannon Launcher Heavy Missile Launcher Special Weapon Remote Datajack Slashing Weapon Makeshift Sword Build | -11 -10 -10 -10 -8 -8 -8 -8 -7 -7 ------- Run | Yrd Mat Min Sub Mat Gar Mat Gar Fac Gar Slots Evolved 6 | . . . . 4 . . . 2 . Power . | . . . . . . . . . . Propulsion 2 | . . . . 2 . . . . . Utility 4 | . . . . 2 . . . 2 . Weapon . | . . . . . . . . . . Parts Attached 230 | 1 10 5 18 46 29 13 13 78 17 Power 10 | . . 1 . 2 2 . . 3 2 Engine 4 | . . 1 . 1 1 . . 1 . Core 6 | . . . . 1 1 . . 2 2 Reactor . | . . . . . . . . . . Propulsion 44 | . 6 1 2 7 2 4 1 18 3 Treads 27 | . 3 1 1 4 1 4 1 10 2 Leg 2 | . 2 . . . . . . . . Wheel 11 | . 1 . 1 3 1 . . 4 1 Hover . | . . . . . . . . . . Flight 4 | . . . . . . . . 4 . Utility 70 | 1 2 1 3 12 5 3 3 34 6 Device 38 | 1 . . . 3 4 . 1 24 5 Storage 6 | . 1 . 1 1 . 1 . 2 . Processor 2 | . . . . . . . . 2 . Hackware 4 | . . . . 2 . . 1 1 . Protection 20 | . 1 1 2 6 1 2 1 5 1 Artifact . | . . . . . . . . . . Weapon 106 | . 2 2 13 25 20 6 9 23 6 Energy Gun 22 | . 1 1 5 8 7 . . . . Energy Cannon 8 | . . . 2 1 . . . . 5 Ballistic Gun 36 | . . . . 11 8 4 5 7 1 Ballistic Cannon 14 | . . . 5 1 . . . 8 . Launcher 16 | . 1 1 1 3 3 1 1 5 . Special Weapon 8 | . . . . 1 2 1 2 2 . Impact Weapon . | . . . . . . . . . . Slashing Weapon 2 | . . . . . . . 1 1 . Piercing Weapon . | . . . . . . . . . . Special Melee Weapon . | . . . . . . . . . . Unidentified Prototypes 8 | . . . . 3 . . . 5 . Parts Lost 26 | . . . 3 5 1 1 . 11 5 Power 2 | . . . . 1 . . . . 1 Propulsion 9 | . . . . 3 1 . . 3 2 Utility 9 | . . . 1 1 . 1 . 5 1 Weapon 6 | . . . 2 . . . . 3 1 Highest Loss Streak 5 | . . . 2 1 1 1 . 3 5 To Critical Strikes . | . . . . . . . . . . Average Slot Usage (%) 88 | . 100 100 98 83 88 89 89 81 75 Engine 4 | . 14 14 14 1 6 . . . 6 Core 4 | . . . . 7 1 9 9 5 3 Treads 16 | . 7 14 13 15 18 25 36 13 7 Wheel 11 | . 7 14 14 20 18 10 . 6 9 Device 6 | . 9 . . . 9 8 . 12 16 Storage 9 | . 14 14 14 9 9 9 9 6 6 Processor 1 | . . . . . . . . 3 6 Hackware 2 | . . . . . . . 8 5 . Protection 9 | . 4 14 12 10 8 9 9 7 6 Energy Gun 4 | . 12 14 9 5 3 . . . . Energy Cannon 2 | . . . 10 . . . . . 5 Ballistic Gun 9 | . 14 14 . 11 12 17 16 7 . Ballistic Cannon 2 | . . . 7 . . . . 6 3 Naked Turns . | . . . . . . . . . . Heaviest Build 235 | 14 51 59 221 235 83 86 83 128 136 Greatest Support 82 | 20 20 10 23 30 42 82 82 82 56 Greatest Overweight (x) 11 | . 5 5 11 11 3 7 1 4 4 Average Overweight (x) 3 | . 2 5 5 7 2 4 . 2 3 Largest Inventory Capacity 35 | 8 20 20 35 35 20 20 20 25 25 Average Capacity 22 | 8 14 20 21 32 20 20 20 22 25 Most Carried 35 | 8 20 20 21 35 20 20 20 25 25 Average Carried 21 | 6 11 19 18 30 19 19 19 21 24 Final Capacity 35 | 8 20 20 35 20 20 20 20 25 25 Final Carried 25 | 8 20 20 21 20 20 20 20 24 25 Class Distribution -------------------- 80% | Mutant 16% | Hauler-Mutant Dominant Class ---------------- Mutant | -10/Materials Mutant | -10/Mines Mutant | -10/Subcaves Hauler-Mutant | -8/Materials Mutant | -8/Garrison Mutant | -8/Materials Mutant | -8/Garrison Mutant | -7/Factory Mutant | -7/Garrison Resources | -11 -10 -10 -10 -8 -8 -8 -8 -7 -7 ----------- Run | Yrd Mat Min Sub Mat Gar Mat Gar Fac Gar Matter Collected 6802 | 215 65 103 340 1164 758 729 458 2539 431 Remotely 1134 | . . . . . 265 . . 869 . Salvage Created 7929 | 91 232 64 340 1878 713 990 521 2691 409 Parts 443 | 5 11 6 25 124 32 58 24 136 22 Haulers Intercepted 12 | . 1 . . 5 . 2 . 4 . Recyclers Shooed 10 | . 3 . . 4 . . . 3 . Parts Field Recycled . | . . . . . . . . . . Retrieved Matter . | . . . . . . . . . . Parts Self-Destructed . | . . . . . . . . . . Prevented . | . . . . . . . . . . Kills | -11 -10 -10 -10 -8 -8 -8 -8 -7 -7 ------- Run | Yrd Mat Min Sub Mat Gar Mat Gar Fac Gar Combat Hostiles Destroyed 164 | . 6 2 9 39 21 17 13 49 8 Melee 3 | . . . . . . . 1 2 . Guns 84 | . 3 1 1 22 10 15 9 21 2 Cannons 32 | . . . 7 4 . . . 16 5 AOE 45 | . 3 1 1 13 11 2 3 10 1 Classes Destroyed 19 | 2 4 . 3 5 . 1 1 3 . Worker 11 | . . . . 3 . 2 . 6 . Builder 2 | . . . . . . . . 2 . Tunneler 1 | 1 . . . . . . . . . Hauler 12 | . 1 . . 5 . 2 . 4 . Recycler 7 | 1 . . . 1 . 1 . 4 . Mechanic 1 | . . . . . . . . 1 . Operator 3 | . . . . . . 1 . 2 . Watcher 7 | . 1 . . 3 . . . 2 1 Swarmer 40 | . 3 . . 12 9 3 3 8 2 Grunt 75 | . 3 2 . 15 9 8 7 28 3 Brawler 1 | . . . . 1 . . . . . Duelist 1 | . . . . 1 . . . . . Sentry 25 | . . . . 8 3 6 1 5 2 Specialist 2 | . . . . 2 . . . . . Hunter 7 | . . . . . . . 2 4 1 Programmer 4 | . . . . . . . . 4 . Artisan 1 | . . . 1 . . . . . . Cobbler 1 | . . . 1 . . . . . . Subdweller 9 | . . . 9 . . . . . . Best Kill Streak 8 | 2 4 2 3 6 8 5 3 8 4 Combat Bots Only 8 | . 3 2 3 4 8 5 3 6 4 Max Kills in Single Turn 5 | 1 2 1 1 4 3 1 3 5 2 Gunslinging 1 | . . . . 1 . . . . . Exploded 4 | . 2 1 1 4 3 1 3 4 1 Melee 1 | . . . . . . . 1 1 . Uniques/NPCs Destroyed . | . . . . . . . . . . Combat | -11 -10 -10 -10 -8 -8 -8 -8 -7 -7 -------- Run | Yrd Mat Min Sub Mat Gar Mat Gar Fac Gar Hostile Shots Fired 1033 | . 19 4 40 178 92 84 91 371 154 Missed 248 | . 3 3 9 34 22 16 13 124 24 Damage Taken 10503 | . 177 11 725 2412 925 794 688 3368 1403 Core 1237 | . 42 . 55 253 87 45 53 415 287 Absorbed by Shields 964 | . . . . 39 209 248 442 . 26 Redirected to Shielding 54 | . . . . . . . . 54 . Ignored by Resistances 13 | . . . . 13 . . . . . Regen/Repaired (Parts) 255 | . . . . 56 . . . 199 . Core Remaining (%) 60 | 100 . . 61 . . . 20 . . Volleys Fired 669 | 5 16 2 66 122 98 62 40 223 35 Largest 2 | 2 2 2 2 2 2 2 2 2 2 Hottest 150 | 70 70 70 140 140 55 80 50 96 150 Shots Fired 1144 | 10 29 3 98 217 147 122 80 389 49 Gun 874 | 10 26 2 18 194 139 120 79 270 16 Cannon 235 | . . . 77 18 . . . 107 33 Launcher 29 | . 3 1 3 5 8 2 1 6 . Special 6 | . . . . . . . . 6 . Kinetic 946 | 5 13 1 29 181 123 115 79 377 23 Thermal 79 | 5 13 1 53 7 . . . . . Explosive 21 | . 3 1 . . 8 2 1 6 . Electromagnetic 92 | . . . 16 29 16 5 . . 26 Robot Hit Streak 20 | 3 10 4 17 19 20 14 12 14 7 Robot Miss Streak 7 | 2 1 . 2 2 5 4 4 7 3 Penetration Max 1 | . . . . . . . . 1 . Secondary Targets 14 | . . . . 4 2 2 5 1 . Max Gunslinging Chain 1 | . . . . 1 1 1 1 1 . Shots Hit Robots 748 | 5 20 2 51 164 97 86 52 243 28 Core Hits 385 | 3 14 2 17 84 51 41 25 134 14 Critical Kills 5 | . 1 . . 2 . 1 1 . . Critical Parts Destroyed 4 | . . . . 1 1 . . 1 1 Critical Strikes 14 | . 3 . . 3 1 1 1 3 2 Burn 2 | . 2 . . . . . . . . Destroy 9 | . 1 . . 3 1 1 1 1 1 Blast 3 | . . . . . . . . 2 1 Melee Attacks 16 | . . . . . . . 2 14 . Impact . | . . . . . . . . . . Slashing 16 | . . . . . . . 2 14 . Piercing . | . . . . . . . . . . Sneak Attacks . | . . . . . . . . . . Combat Hostiles . | . . . . . . . . . . Follow-up Attacks . | . . . . . . . . . . Damage Inflicted 18384 | 52 422 108 1321 3918 2804 1679 1058 6121 901 Guns 10039 | 52 241 13 224 2431 1438 1464 818 3048 310 Cannons 3346 | . . . 785 374 . . . 1691 496 Explosions 4888 | . 181 95 312 1113 1366 215 205 1306 95 Melee 104 | . . . . . . . 35 69 . Ramming 7 | . . . . . . . . 7 . Kinetic 12385 | 14 98 . 588 2860 1425 1428 818 4739 415 Thermal 1406 | 38 143 13 535 497 . . . 85 95 Explosive 3283 | . 181 95 . . 1366 215 205 1221 . Electromagnetic 1199 | . . . 198 561 13 36 . . 391 Impact . | . . . . . . . . . . Slashing 104 | . . . . . . . 35 69 . Piercing . | . . . . . . . . . . Highest Corruption 8 | . . . . 1 . 4 4 8 8 Average Corruption 2 | . . . . 1 . 1 4 2 8 Corruption Purged 2 | . . . . 1 . . . 1 . Corruption Blocked . | . . . . . . . . . . Effects 91 | . . . . 1 . 10 22 41 17 Message Errors 24 | . . . . . . 4 5 12 3 Matter Fused 19 | . . . . . . 1 5 9 4 Heat Flow Errors 7 | . . . . . . 1 3 . 3 Energy Discharges 6 | . . . . 1 . 1 . 4 . Parts Fused 2 | . . . . . . . 2 . . Data Loss (minor) 17 | . . . . . . 2 3 10 2 Data Loss (major) 4 | . . . . . . 1 . 2 1 Misfires 8 | . . . . . . . 3 4 1 Alerts 3 | . . . . . . . . . 3 Weapon Failures 1 | . . . . . . . 1 . . Overload Shots . | . . . . . . . . . . Overflow Damage 363 | . 7 . 11 138 92 47 . 68 . Projectiles 34 | . . . . . . . . 34 . Explosions 329 | . 7 . 11 138 92 47 . 34 . Melee . | . . . . . . . . . . Knockbacks 20 | . . . 4 1 . . . 15 . Impact . | . . . . . . . . . . Kinetic 20 | . . . 4 1 . . . 15 . Secondary . | . . . . . . . . . . Self-Inflicted Damage 440 | . . . 94 85 80 . 39 119 23 Shots 15 | . . . 3 3 4 . 1 3 1 Rammed 1 | . . . . . . . . 1 . Targets Rammed 1 | . . . . . . . . 1 . Kicked . | . . . . . . . . . . Crushed . | . . . . . . . . . . Highest Temperature 602 | 70 179 36 156 347 304 373 356 382 602 Average Temperature 106 | 36 64 13 44 106 68 99 159 103 270 Received Heat Transfer 3536 | . 81 6 114 1041 378 388 242 945 341 Effects 28 | . . . . 7 1 4 3 3 10 Shutdowns 4 | . . . . . . 1 . . 3 Energy Bleed 6 | . . . . 2 . 1 . 2 1 Interference 8 | . . . . 4 1 2 . . 1 Matter Decay 5 | . . . . . . . 1 1 3 Short Circuit 3 | . . . . 1 . . 1 . 1 Damage (minor) 1 | . . . . . . . 1 . . Damage (core) 1 | . . . . . . . . . 1 Siege Activations . | . . . . . . . . . . Robots Corrupted . | . . . . . . . . . . Combat Hostiles . | . . . . . . . . . . Parts Fried 4 | . . . 1 2 . . . . 1 Impact Corruptions . | . . . . . . . . . . Robots Melted . | . . . . . . . . . . Combat Hostiles . | . . . . . . . . . . Parts Melted 2 | 1 . . . 1 . . . . . Heat Transferred 2202 | 111 555 37 777 472 . . . 100 150 Parts Sabotaged . | . . . . . . . . . . Parts Stolen . | . . . . . . . . . . Parts Stripped . | . . . . . . . . . . Power Chain Reactions 5 | . . . . 4 . . . . 1 Alert | -11 -10 -10 -10 -8 -8 -8 -8 -7 -7 ------- Run | Yrd Mat Min Sub Mat Gar Mat Gar Fac Gar Peak Influence 1355 | 10 279 50 . 633 1116 747 502 1355 1134 Initial 948 | . 6 30 . . 404 544 110 263 948 Average 484 | 8 138 27 . 393 765 257 332 647 1043 Maximum Alert Level 4 | . 1 . . 2 4 3 2 4 4 Low Security (%) 24 | 100 65 100 . 2 . 68 30 8 . Level 1 25 | . 34 . . 47 . 14 34 30 . Level 2 19 | . . . . 50 41 8 35 2 . Level 3 26 | . . . . . 55 8 . 54 59 Level 4 3 | . . . . . 2 . . 3 40 Level 5 . | . . . . . . . . . . High Security . | . . . . . . . . . . Max Security . | . . . . . . . . . . Squads Dispatched 33 | . 1 1 . 8 . 1 . 22 . Investigation 14 | . 1 1 . 3 . 1 . 8 . Extermination 4 | . . . . . . . . 4 . Reinforcement 5 | . . . . 1 . . . 4 . Assault 4 | . . . . . . . . 4 . Garrison 6 | . . . . 4 . . . 2 . Intercept . | . . . . . . . . . . Searches Triggered . | . . . . . . . . . . Construction Impeded . | . . . . . . . . . . Haulers Reinforced 2 | . . . . . . . . 2 . Active Scanning Responses . | . . . . . . . . . . Cargo Convoy Interrupts . | . . . . . . . . . . Stealth | -11 -10 -10 -10 -8 -8 -8 -8 -7 -7 --------- Run | Yrd Mat Min Sub Mat Gar Mat Gar Fac Gar Distress Signals 9 | . 1 . . 3 . 4 . 1 . Communications Jammed 7 | . . . . . . . . 2 5 Distress Signals 6 | . . . . . . . . 1 5 Times Spotted 206 | . 10 3 9 43 21 25 16 64 15 Peak Tracking Total 6 | . 3 3 3 6 6 6 5 6 6 Tactical Retreats 5 | . . . 1 1 . . . 2 1 Traps | -11 -10 -10 -10 -8 -8 -8 -8 -7 -7 ------- Run | Yrd Mat Min Sub Mat Gar Mat Gar Fac Gar Traps Triggered 19 | . . . . 2 3 4 1 4 5 Indirectly . | . . . . . . . . . . Trap Hack Attempts . | . . . . . . . . . . Triggered . | . . . . . . . . . . Disarmed . | . . . . . . . . . . Reprogrammed 1 | . . . . . . . . 1 . Reused . | . . . . . . . . . . Traps Extracted . | . . . . . . . . . . Installed . | . . . . . . . . . . Triggered . | . . . . . . . . . . Machines | -11 -10 -10 -10 -8 -8 -8 -8 -7 -7 ---------- Run | Yrd Mat Min Sub Mat Gar Mat Gar Fac Gar Machines Disabled 17 | . 1 . 1 8 1 1 . 5 . Max in Single Turn 4 | . 1 . 1 2 1 1 . 4 . Garrison Access 1 | . . . . . . . . 1 . Garrison Relay 5 | . . . . . 2 . 3 . . Machines Repaired . | . . . . . . . . . . Machines Dismantled 6 | . . . . . 3 . 3 . . Machines Sabotaged . | . . . . . . . . . . Overloaded Fab Kills . | . . . . . . . . . . Hacking | -11 -10 -10 -10 -8 -8 -8 -8 -7 -7 --------- Run | Yrd Mat Min Sub Mat Gar Mat Gar Fac Gar Machines Accessed 55 | . 6 1 1 11 3 7 4 22 . Terminals 28 | . 5 . . 6 3 4 4 6 . Fabricators 5 | . . . . . . . . 5 . Repair Stations 5 | . . . . 1 . 1 . 3 . Recycling Units 8 | . 1 . . 2 . . . 5 . Scanalyzers 4 | . . . . 1 . 1 . 2 . Garrison Access 3 | . . . . 1 . 1 . 1 . Total Hacks 165 | . 15 1 1 34 7 19 12 76 . Successful 88 | . 8 1 1 19 3 12 6 38 . Failed 75 | . 6 . . 14 4 7 6 38 . Catastrophic 18 | . . . . 3 2 1 2 10 . Database Lockouts 2 | . 1 . . 1 . . . . . Manual 65 | . 9 . . 15 1 3 7 30 . Terminals 103 | . 13 . . 21 7 12 12 38 . Fabricators 12 | . . . . . . . . 12 . Repair Stations 11 | . . . . 2 . 2 . 7 . Recycling Units 20 | . 2 . . 6 . . . 12 . Scanalyzers 14 | . . . . 4 . 4 . 6 . Garrison Access 3 | . . . . 1 . 1 . 1 . Terminal Hacks 37 | . 6 1 1 7 3 5 4 10 . Part Schematic 4 | . . . . 1 . 1 . 2 . Robot Analysis 3 | . 3 . . . . . . . . Prototype ID Bank 5 | . 2 . . 3 . . . . . Open Door 2 | . . 1 . . . . 1 . . Branch Access Points 1 | . . . . . . 1 . . . Emergency Access Points 2 | . . . . . 1 . 1 . . Terminal Index 2 | . . . . 1 . . . 1 . Unreport Threat 4 | . . . . 1 . 3 . . . Locate Traps 3 | . 1 . . . . . . 2 . Reprogram Traps 1 | . . . . . . . . 1 . Recall Investigation 1 | . . . . . . . . 1 . Recall Extermination 1 | . . . . . . . . 1 . Registered Components 1 | . . . . . . . . 1 . Zone Layout 2 | . . . . 1 . . . 1 . Garrison Registry 2 | . . . . . 1 . 1 . . Security Stations 2 | . . . . . 1 . 1 . . Derelict Proto ID Bank 1 | . . . 1 . . . . . . Fabricator Hacks 6 | . . . . . . . . 6 . Network Status 1 | . . . . . . . . 1 . Load Schematic 4 | . . . . . . . . 4 . Build 1 | . . . . . . . . 1 . Repair Station Hacks 8 | . . . . 2 . 1 . 5 . Scan Component 5 | . . . . 1 . 1 . 3 . Repair 3 | . . . . 1 . . . 2 . Recycling Unit Hacks 5 | . 1 . . 2 . . . 2 . Report Inventory 4 | . 1 . . 2 . . . 1 . Retrieve Components 1 | . . . . . . . . 1 . Scanalyzer 14 | . . . . 4 . 4 . 6 . Insert Component 7 | . . . . 2 . 2 . 3 . Analyze 7 | . . . . 2 . 2 . 3 . Garrison Access Hacks 3 | . . . . 1 . 1 . 1 . Unlock Access 3 | . . . . 1 . 1 . 1 . Unauthorized Hacks 15 | . 1 . . 3 . 1 2 8 . Terminals 8 | . . . . 1 . 1 2 4 . Track 2 | . . . . 1 . . . 1 . Botnet 5 | . . . . . . 1 2 2 . Operators 1 | . . . . . . . . 1 . Fabricators 2 | . . . . . . . . 2 . Recompile 2 | . . . . . . . . 2 . Repair Stations . | . . . . . . . . . . Recycling Units 5 | . 1 . . 2 . . . 2 . Mask 3 | . . . . 1 . . . 2 . Tunnel 2 | . 1 . . 1 . . . . . Scanalyzers . | . . . . . . . . . . Garrison Access . | . . . . . . . . . . Data Cores Recovered 2 | . . . . . . . . 2 . Used 1 | . . . . . . . . 1 . Hacking Detections 45 | . 6 . . 7 3 5 4 20 . Full Trace Events 7 | . . . . 1 . 1 . 5 . Feedback Events . | . . . . . . . . . . Feedback Blocked . | . . . . . . . . . . Robot Schematics Acquired . | . . . . . . . . . . Robots Built . | . . . . . . . . . . Authchips . | . . . . . . . . . . Time . | . . . . . . . . . . Total Robot Build Rating . | . . . . . . . . . . Part Schematics Acquired 10 | . . . . 2 . 3 . 5 . Parts Built 1 | . . . . . . . . 1 . Authchips . | . . . . . . . . . . Time 106 | . . . . . . . . 106 . Total Part Build Rating 6 | . . . . . . . . 6 . Parts Repaired 3 | . . . . 1 . . . 2 . Time 110 | . . . . 44 . . . 66 . Parts Recycled . | . . . . . . . . . . Recycled Matter . | . . . . . . . . . . Retrieved Matter . | . . . . . . . . . . Retrieved Components 5 | . . . . . . . . 5 . Parts Scanalyzed 6 | . . . . 2 . 1 . 3 . Part Schematics Acquired 6 | . . . . 1 . 2 . 3 . Parts Damaged . | . . . . . . . . . . Bothacking | -11 -10 -10 -10 -8 -8 -8 -8 -7 -7 ------------ Run | Yrd Mat Min Sub Mat Gar Mat Gar Fac Gar Used RIF Installer 4 | . . . . . 2 . 1 . 1 Coupler Efficiency 1 | . . . . . . . . . 1 Patrol Navigation 1 | . . . . . . . 1 . . Structural Interface 1 | . . . . . 1 . . . . Robots Hacked 3 | . . . . . . . . 3 . Non-combat 3 | . . . . . . . . 3 . Combat . | . . . . . . . . . . Robot Hacks Applied 4 | . . . . . . . . 4 . find_chute 1 | . . . . . . . . 1 . drop_inventory 1 | . . . . . . . . 1 . purge_threat 1 | . . . . . . . . 1 . block_reporting 1 | . . . . . . . . 1 . Relay Couplers Released 26 | . . . . . 7 . 13 6 . Machine Destruction 22 | . . . . . 7 . 13 2 . Programmers 4 | . . . . . . . . 4 . Attached 1 | . . . . . . . . 1 . Fabnet Peak Effective % . | . . . . . . . . . . Robots Rewired . | . . . . . . . . . . Allies Hacked . | . . . . . . . . . . Hacks Repelled . | . . . . . . . . . . Allies | -11 -10 -10 -10 -8 -8 -8 -8 -7 -7 -------- Run | Yrd Mat Min Sub Mat Gar Mat Gar Fac Gar Total Allies 2 | . . . . . . . 2 . . Largest Group 2 | . . . . . . . 2 . . Highest-Rated Group 59 | . . . . . . . 59 . . Highest-Rated Ally 39 | . . . . . . . 39 . . Total Orders . | . . . . . . . . . . Ally Attacks 12 | . . . . . . . 12 . . Total Damage 304 | . . . . . . . 304 . . Kills 3 | . . . . . . . 3 . . Allies Corrupted . | . . . . . . . . . . Allies Melted 1 | . . . . . . . 1 . . Intel | -11 -10 -10 -10 -8 -8 -8 -8 -7 -7 ------- Run | Yrd Mat Min Sub Mat Gar Mat Gar Fac Gar Robot Analysis Total 3 | . 3 . . . . . . . . Derelict Logs Recovered 1 | . . 1 . . . . . . . Drone Launches . | . . . . . . . . . . Drone Recoveries . | . . . . . . . . . . Exploration | -11 -10 -10 -10 -8 -8 -8 -8 -7 -7 ------------- Run | Yrd Mat Min Sub Mat Gar Mat Gar Fac Gar Turns Passed 13150 | 42 508 768 2141 2354 1231 1322 917 3293 574 Spaces Moved 6061 | 20 311 469 827 756 524 495 467 1936 256 Core . | . . . . . . . . . . Treads 941 | . . . 187 . 114 43 467 129 1 Legs 169 | 20 149 . . . . . . . . Wheels 4390 | . 162 469 640 756 410 452 . 1246 255 Hover . | . . . . . . . . . . Flight 561 | . . . . . . . . 561 . Fastest Speed 29 | 120 120 155 155 115 120 120 156 29 145 Average Speed 159 | 120 135 155 222 201 154 167 156 122 159 Slowest Speed 880 | 120 155 155 880 245 232 236 236 480 320 Overloaded Moves . | . . . . . . . . . . Propulsion Burnouts . | . . . . . . . . . . Robots Hopped 3 | . . . . . . . . 3 . Cave-ins Triggered . | . . . . . . . . . . Exploration Rate (%) 52 | 2 52 96 42 80 69 39 76 46 26 Regions Visited 9 Branch Regions 2 Pre-discovered Areas 3 | . 1 . 1 1 . . . . . Known Exits Taken 4 | . . 1 . 1 . 1 . 1 . Unknown Exits Taken 3 | 1 1 . 1 . . . . . . Scrap Searched 17 | . . 1 16 . . . . . . Spaces Dug 147 | . . . 25 43 37 . 11 31 . Terrain Destroyed 404 | . 9 . 35 119 40 26 11 151 13 Melee 5 | . . . . . . . . 5 . Projectile 43 | . . . 10 5 1 . . 23 4 AOE 356 | . 9 . 25 114 39 26 11 123 9 Terrain Rammed . | . . . . . . . . . . Walls Destroyed . | . . . . . . . . . . Machines Disabled . | . . . . . . . . . . Actions | -11 -10 -10 -10 -8 -8 -8 -8 -7 -7 --------- Run | Yrd Mat Min Sub Mat Gar Mat Gar Fac Gar Total 8611 | 29 374 508 1038 1390 807 906 586 2598 375 Wait 1237 | . 12 22 82 381 119 325 46 229 21 Move 6048 | 19 310 468 826 756 523 494 466 1930 256 Hop 3 | . . . . . . . . 3 . Pick Up 157 | 3 17 5 28 40 8 3 4 44 5 Fast Attach 58 | 1 . . 5 5 3 3 2 32 7 Attach 41 | . . . 4 16 1 1 2 11 6 Detach 10 | . . . . 1 . . . 5 4 Swap 131 | . 10 5 9 25 25 9 9 35 4 Drop 160 | 1 9 6 18 43 11 8 6 53 5 Fire 669 | 5 16 2 66 122 98 62 40 223 35 Melee 16 | . . . . . . . 2 14 . Ram 1 | . . . . . . . . 1 . Kick . | . . . . . . . . . . Crush . | . . . . . . . . . . Escape Stasis 58 | . . . . . 8 . . 18 32 Rewire . | . . . . . . . . . . Trap . | . . . . . . . . . . Miscellaneous 22 | . . . . 1 11 1 9 . . Route ------- -11/Scrapyard -10/Materials (discovered 4 exits: [*Mat x2] / *Min x2) -10/Mines (discovered 3 exits: [*Mat x2] / *Sub) -10/Subcaves -8/Materials (discovered 3 exits: *Fac x2 / Gar) -8/Garrison (discovered 3 exits: *Mat x3) -8/Materials -8/Garrison (discovered 3 exits: *Fac x3) -7/Factory (discovered 5 exits: [*Fac x2] / [*Low x2] / Gar) -7/Garrison History --------- Turn | Location | Event 16 | -11/Scrapyard | Discovered new exit (range 3) 43 | -11/Scrapyard | Entered Materials 80 | -10/Materials | Central database locked down 142 | -10/Materials | Discovered new exit (range 6) 249 | -10/Materials | Discovered new exit (range 7) 288 | -10/Materials | Discovered new exit (range 16) 335 | -10/Materials | Build established: Mutant 428 | -10/Materials | Discovered new exit (range 16) 551 | -10/Materials | Entered Mines 766 | -10/Mines | Discovered new exit (range 12) 776 | -10/Mines | Received a Rocket Launcher from a helpful Derelict 1106 | -10/Mines | Identified exit to Subcaves 1111 | -10/Mines | Discovered new exit (range 12) 1138 | -10/Mines | Met a Derelict shopkeep closing up shop 1319 | -10/Mines | Entered Subcaves 1650 | -10/Subcaves | Disturbed a concealed Subdweller 2050 | -10/Subcaves | Visited 4L-MR0's lab 2070 | -10/Subcaves | Found Power Bank 2217 | -10/Subcaves | Disturbed a concealed Subdweller 2535 | -10/Subcaves | A swath of the cavern ceiling suddenly collapsed 2571 | -10/Subcaves | Discovered new exit (range 4) 2575 | -10/Subcaves | Learned location of Zion (-6) 2575 | -10/Subcaves | Met a Zionite searching for "candidates" 2638 | -10/Subcaves | Ambushed by Subdweller buried in earth 2713 | -10/Subcaves | Ambushed by angry Subdweller bent on revenge 2790 | -10/Subcaves | Shifting Twisted Machinery released Mak. Light Armor Plating 2825 | -10/Subcaves | Shifting Twisted Machinery released Sub. Shrapnel Launcher 3460 | -10/Subcaves | Entered Materials 3460 | -8/Materials | Evolved 4 slots: Propulsion x2, Utility x2 3542 | -8/Materials | Build established: Hauler-Mutant 3881 | -8/Materials | Discovered new exit (range 16) 4161 | -8/Materials | Central database locked down 4873 | -8/Materials | Garrison activated, responded to threat 5680 | -8/Materials | Repaired Hrd. Heavy Armor Plating 5731 | -8/Materials | Build established: Mutant 5762 | -8/Materials | Garrison activated, responded to threat 5781 | -8/Materials | Discovered new exit (range 15) 5814 | -8/Materials | Identified exit to Garrison 5814 | -8/Materials | Entered Garrison 5914 | -8/Garrison | Triggered checkpoint 5951 | -8/Garrison | Core integrity fell below 50% 5994 | -8/Garrison | Installed Relay Interface Framework 6033 | -8/Garrison | Learned Materials security intel 6056 | -8/Garrison | Garrison Relay disabled 6323 | -8/Garrison | Triggered checkpoint 6392 | -8/Garrison | Destroyed 8 combat bots 6448 | -8/Garrison | Triggered checkpoint 6490 | -8/Garrison | Garrison Relay disabled 6626 | -8/Garrison | Discovered new exit (range 14) 6652 | -8/Garrison | Discovered new exit (range 37) 6652 | -8/Garrison | Discovered new exit (range 74) 6652 | -8/Garrison | Discovered new exit (range 8) 6744 | -8/Garrison | Triggered checkpoint 7010 | -8/Garrison | Expanded RIF knowledge: Structural Interface 7045 | -8/Garrison | Entered Materials 8332 | -8/Materials | Identified exit to Garrison 8367 | -8/Materials | Entered Garrison 8399 | -8/Garrison | Rescued a captive Derelict 8399 | -8/Garrison | Rescued a captive Derelict 8481 | -8/Garrison | Triggered checkpoint 8513 | -8/Garrison | Garrison Relay disabled 8538 | -8/Garrison | Garrison Relay disabled 8625 | -8/Garrison | Learned Factory security intel 8758 | -8/Garrison | Discovered new exit (range 13) 8819 | -8/Garrison | Triggered checkpoint 8851 | -8/Garrison | Garrison Relay disabled 8905 | -8/Garrison | Discovered new exit (range 48) 8905 | -8/Garrison | Discovered new exit (range 22) 8905 | -8/Garrison | Discovered new exit (range 76) 8941 | -8/Garrison | Triggered checkpoint 9163 | -8/Garrison | Triggered checkpoint 9242 | -8/Garrison | Expanded RIF knowledge: Patrol Navigation 9284 | -8/Garrison | Entered Factory 9284 | -7/Factory | Evolved 2 slots: Utility x2 9444 | -7/Factory | Discovered new exit (range 3) 9848 | -7/Factory | Fabricated Adv. System Shield (x1) 10399 | -7/Factory | Garrison activated, responded to threat 10670 | -7/Factory | Lost 3 parts (1n1u1w) 11521 | -7/Factory | Discovered new exit (range 4) 11846 | -7/Factory | Repaired Arm. Huge Wheel 11941 | -7/Factory | Discovered new exit (range 9) 12002 | -7/Factory | Core integrity fell below 50% 12224 | -7/Factory | Discovered new exit (range 6) 12280 | -7/Factory | Found Prototype Launcher 12280 | -7/Factory | Identified Rocket Array 12365 | -7/Factory | Repaired Weapon Cycler 12484 | -7/Factory | First assault squad dispatched 12498 | -7/Factory | Garrison activated, responded to threat 12577 | -7/Factory | Identified exit to Garrison 12577 | -7/Factory | Entered Garrison 12605 | -7/Garrison | Expanded RIF knowledge: Coupler Efficiency 12718 | -7/Garrison | Attached Power Bank, gained temporary slots: Power x3 12811 | -7/Garrison | Core integrity fell below 20% 12865 | -7/Garrison | Heavy support dispatched to Factory 12873 | -7/Garrison | Lost 5 parts (1p2n1u1w) 12931 | -7/Garrison | Triggered checkpoint 12985 | -7/Garrison | Triggered checkpoint 13032 | -7/Garrison | Heavy support dispatched to Factory 13151 | -7/Garrison | Destroyed by G-47 Trooper with Particle Gun Last Messages --------------- 13003_ Dropped Sml. Battery. 13004_ Extracted 4 energy. 13005_ Acquired Lrg. Battery. 13006_ Extracted 4 energy. 13011_ CZ1OOHET&MTG